{"text_format":"1","workbook":"xlsx","n_sheets":13,"sheets":["RECAP","Paramètres","Cadet DFILL","Cadet GARC ","Tetard FILL ","Tetard GARC ","Caneton FILL","caneton GARC ","MINIMFILL","MINIMGARC","benjamin  FILL","benjamin GARC ","Relais"],"not_rendered":{"charts":0,"images":0,"macros":1,"external_links":0,"defined_names":8,"comments":10,"pivot_tables":0},"unopened":[],"bounds":{"document_bytes":16777216,"sheet_cells":100000,"rows_first":2000,"rows_last":500,"rows_between":2000,"halvings":0,"cell_chars":16384,"cell_head_chars":4096},"cells_cut":0,"cells_raw":0,"read":"whole","date_system":"1900"}

{"sheet":"RECAP","index":0,"n_rows":28,"n_cols":7,"rows_kept":28,"cut":false,"hidden":false,"merged":[[1,0,1,6],[3,0,3,6]]}
["AFFICHAGE AVEC 0  : NE RIEN SAISIR : CALCUL AUTOMATIQUE"]
["RECAPITULATIF CHALLENGE DU PAYS BASQUE"]
[]
[{"$f":"Paramètres!B1","v":"CHALLENGE DU PAYS BASQUE  : ST jean Pied de Port le 19/07/2017"}]
[]
["EPREUVES",{"$f":"Paramètres!C5","v":"BIDACHE"},{"$f":"Paramètres!C6","v":"HASPARREN"},{"$f":"Paramètres!C7","v":"MAULEON"},{"$f":"Paramètres!C8","v":"GARAZI"},{"$f":"Paramètres!C9","v":"ST PALAIS"},{"$f":"Paramètres!C10","v":"Equipe 6"}]
[{"$f":"Paramètres!C20","v":"100 NL Cadet  Filles"},{"$f":"'Cadet DFILL'!N7","v":1},{"$f":"'Cadet DFILL'!N8","v":4},{"$f":"'Cadet DFILL'!N9","v":3},{"$f":"'Cadet DFILL'!$N10","v":2},{"$f":"'Cadet DFILL'!$N11","v":6},{"$f":"'Cadet DFILL'!$N12","v":0}]
[{"$f":"Paramètres!C21","v":"100 NL Cadet  Garçons"},{"$f":"'Cadet GARC '!N7","v":1},{"$f":"'Cadet GARC '!N8","v":3},{"$f":"'Cadet GARC '!N9","v":6},{"$f":"'Cadet GARC '!N10","v":4},{"$f":"'Cadet GARC '!N11","v":2},{"$f":"'Cadet GARC '!N12","v":0}]
[{"$f":"Paramètres!C22","v":"25 brasse Têtard Filles"},{"$f":"'Tetard FILL '!N7","v":3},{"$f":"'Tetard FILL '!N8","v":5},{"$f":"'Tetard FILL '!N9","v":5},{"$f":"'Tetard FILL '!N10","v":2},{"$f":"'Tetard FILL '!N11","v":1},{"$f":"'Tetard FILL '!N12","v":0}]
[{"$f":"Paramètres!C23","v":"25 brasse Têtard Garçons"},{"$f":"'Tetard GARC '!N7","v":3},{"$f":"'Tetard GARC '!N8","v":3},{"$f":"'Tetard GARC '!N9","v":4},{"$f":"'Tetard GARC '!N10","v":5},{"$f":"'Tetard GARC '!N11","v":1},{"$f":"'Tetard GARC '!N12","v":0}]
[{"$f":"Paramètres!C24","v":"50 brasse  Canetons Filles"},{"$f":"'Caneton FILL'!N7","v":4},{"$f":"'Caneton FILL'!N8","v":6},{"$f":"'Caneton FILL'!N9","v":2},{"$f":"'Caneton FILL'!N10","v":3},{"$f":"'Caneton FILL'!N11","v":1},{"$f":"'Caneton FILL'!N12","v":0}]
[{"$f":"Paramètres!C25","v":"50 brasse Canetons Garçons"},{"$f":"'caneton GARC '!N7","v":2},{"$f":"'caneton GARC '!N8","v":3},{"$f":"'caneton GARC '!N9","v":1},{"$f":"'caneton GARC '!N10","v":5},{"$f":"'caneton GARC '!N11","v":5},{"$f":"'caneton GARC '!N12","v":0}]
[{"$f":"Paramètres!C26","v":"100 NL Minimes   Filles"},{"$f":"MINIMFILL!N7","v":1},{"$f":"MINIMFILL!N8","v":2},{"$f":"MINIMFILL!N9","v":5},{"$f":"MINIMFILL!N10","v":4},{"$f":"MINIMFILL!N11","v":4},{"$f":"MINIMFILL!N12","v":0}]
[{"$f":"Paramètres!C27","v":"100 NL Minimes Garçons"},{"$f":"MINIMGARC!N7","v":1},{"$f":"MINIMGARC!N8","v":4},{"$f":"MINIMGARC!N9","v":5},{"$f":"MINIMGARC!N10","v":4},{"$f":"MINIMGARC!N11","v":2},{"$f":"MINIMGARC!N12","v":0}]
[{"$f":"Paramètres!C28","v":"Relais 10*25 brasse Tétard/Canetons"},{"$f":"Relais!L10","v":1},{"$f":"Relais!L11","v":4},{"$f":"Relais!L12","v":3},{"$f":"Relais!L13","v":5},{"$f":"Relais!L14","v":2},{"$f":"Relais!L15","v":0}]
[{"$f":"Paramètres!C29","v":"Relais 10 x 50 brasse Benj/Minimes/Cadet"},{"$f":"Relais!L24","v":1},{"$f":"Relais!L25","v":2},{"$f":"Relais!$L26","v":3},{"$f":"Relais!$L27","v":4},{"$f":"Relais!$L28","v":5},{"$f":"Relais!$L29","v":0}]
[{"$f":"Paramètres!C30","v":"50 brasse  Benjamin Filles"},{"$f":"'benjamin  FILL'!N7","v":1},{"$f":"'benjamin  FILL'!N8","v":5},{"$f":"'benjamin  FILL'!N9","v":3},{"$f":"'benjamin  FILL'!N10","v":5},{"$f":"'benjamin  FILL'!N11","v":2},{"$f":"'benjamin  FILL'!N12","v":0}]
[{"$f":"Paramètres!C31","v":"50 brasse Benjamin Garçons"},{"$f":"'benjamin GARC '!N7","v":1},{"$f":"'benjamin GARC '!N8","v":3},{"$f":"'benjamin GARC '!N9","v":5},{"$f":"'benjamin GARC '!N10","v":2},{"$f":"'benjamin GARC '!N11","v":5},{"$f":"'benjamin GARC '!N12","v":0}]
[{"$f":"Paramètres!C32","v":"Relais 12 * 50 - Nage Libre "},{"$f":"Relais!$L38","v":1},{"$f":"Relais!$L39","v":5},{"$f":"Relais!$L40","v":4},{"$f":"Relais!$L41","v":2},{"$f":"Relais!$L42","v":3},{"$f":"Relais!$L43","v":0}]
["TOTAL 1ère Journée",{"$f":"SUM(B7:B19)","v":21},49,49,47,39,0]
["TOTAL 2ième Journée"]
["TOTAL 3ième Journée"]
["TOTAL 4ième Journée"]
["TOTAL FINAL",{"$f":"SUM(B20:B23)","v":21},49,49,47,39,0]
["CLASSEMENT"]
[]
["Nota : pour le challenge (2ème journée), le resultat de la première journée sera à renseigner manuellement"]
["A SUPP calcul auto pour le TOTAL des journées suivant les journées"]

{"sheet":"Paramètres","index":1,"n_rows":39,"n_cols":3,"rows_kept":39,"cut":false,"hidden":false,"merged":[[0,1,0,6]]}
["Titre","CHALLENGE DU PAYS BASQUE  : ST jean Pied de Port le 19/07/2017"]
[]
[]
[]
["Club",1,"BIDACHE"]
[null,2,"HASPARREN"]
[null,3,"MAULEON"]
[null,4,"GARAZI"]
[null,5,"ST PALAIS"]
[null,6,"Equipe 6"]
[null,7,"Equipe 7"]
[null,8,"Equipe 8"]
[null,9,"Equipe 9"]
[null,10,"Equipe 10"]
[]
[]
["Nombre de points maximum",null,5]
[]
[]
["EPREUVES",1,"100 NL Cadet  Filles"]
[null,2,"100 NL Cadet  Garçons"]
[null,3,"25 brasse Têtard Filles"]
[null,4,"25 brasse Têtard Garçons"]
[null,5,"50 brasse  Canetons Filles"]
[null,6,"50 brasse Canetons Garçons"]
[null,7,"100 NL Minimes   Filles"]
[null,8,"100 NL Minimes Garçons"]
[null,9,"Relais 10*25 brasse Tétard/Canetons"]
[null,10,"Relais 10 x 50 brasse Benj/Minimes/Cadet"]
[null,11,"50 brasse  Benjamin Filles"]
[null,12,"50 brasse Benjamin Garçons"]
[null,13,"Relais 12 * 50 - Nage Libre "]
[null,14]
[null,15]
[]
[]
["Attention : Ne pas renseigner la cellule 'Commune' pour les Hors Classement"]
[]
["Saisie du temps: Toujours renseigner les minutes même si inférieur à 1 minute. Exemple: 0.45.13"]

{"sheet":"Cadet DFILL","index":2,"n_rows":35,"n_cols":14,"rows_kept":35,"cut":false,"hidden":false,"merged":[[1,0,1,5],[3,0,3,5],[5,1,5,5]]}
[]
["CLASSEMENTGENERAL"]
[]
[{"$f":"Paramètres!B1","v":"CHALLENGE DU PAYS BASQUE  : ST jean Pied de Port le 19/07/2017"}]
[]
["EPREUVE :",{"$f":"Paramètres!C20","v":"100 NL Cadet  Filles"},null,null,null,null,null,null,null,null,"Club","Points","Meilleur 2nd","Total"]
[null,null,null,null,null,null,null,null,null,null,{"$f":"Paramètres!C5","v":"BIDACHE"},1,null,{"$f":"SUM(L7:M7)","v":1}]
["Temps","Noms","Prenoms","Années de","Communes",null,null,null,null,null,{"$f":"Paramètres!C6","v":"HASPARREN"},4,null,{"$f":"SUM(L8:M8)","v":4}]
[null,null,null,"Naissance",null,null,null,null,null,null,{"$f":"Paramètres!C7","v":"MAULEON"},3,null,3]
["m.ss.cc",null,null,null,null,null,null,null,null,null,{"$f":"Paramètres!C8","v":"GARAZI"},2,null,2]
["ne pas utiliser","ne pas utiliser","ne pas utiliser","ne pas utiliser","ne pas utiliser","ne pas utiliser",null,null,null,null,{"$f":"Paramètres!C9","v":"ST PALAIS"},5,1,6]
["1,07,91","MARQUINE","Camille",2001,"ST PALAIS",null,null,null,null,null,{"$f":"Paramètres!C10","v":"Equipe 6"},null,null,0]
["1,08,10","ETCHEBERRY","Emma",1999,"HASPARREN",null,null,null,null,null,{"$f":"Paramètres!C11","v":"Equipe 7"},null,null,0]
["1,08,74","DARGELOS","Juliette",1999,"ST PALAIS",null,null,null,null,null,{"$f":"Paramètres!C12","v":"Equipe 8"},null,null,0]
["1,08,87","GONZALO-BILBO","Julene",2002,null,null,null,null,null,null,{"$f":"Paramètres!C13","v":"Equipe 9"},null,null,0]
["1,09,22","LAJEUNESSE","Lisa",2000,"MAULEON",null,null,null,null,null,{"$f":"Paramètres!C14","v":"Equipe 10"},null,null,0]
["1,09,32","GARACOTCHE","Tabata",2002]
["1,10,79","LASSALLE","Lucie",2002,"ST PALAIS"]
["1,10,80","LAJEUNESSE","Aline",2000,"MAULEON"]
["1,12,33","ROBILLARD","Kattin",1999,"GARAZI"]
["1,12,81","INDACOCHEA","Laura",2001,"MAULEON"]
["1,13,45","VIVIANI","Lise",2001,"GARAZI"]
["1,13,99","GASTELLOU","Lisa",2002,"GARAZI"]
["1,14,20","BORDENAVE","Miren",2000,"ST PALAIS"]
["1,14,26","ROBILLARD","Miren",2002,"GARAZI"]
["1,14,55","HOURCADE","Yina",2002,"MAULEON"]
["1,16,14","FARFARO","Margot",1999,"BIDACHE"]
["1,16,69","CAPDEVILLE","Oihana",2000,"HASPARREN"]
["1,23,30","ARDANS","Leire",2002,"GARAZI"]
["1,23,53","SALLABERRY","Elise",2000,"BIDACHE"]
["1,24,38","ALBANDOS","Loélia",2001,"GARAZI"]
["1,28,95","DUFAU","Lise",2002,"BIDACHE"]
["1,29,13","CARRICART","Lyne",2002,"GARAZI"]
["1,30,39","SALLENAVE-LENDRE","Léa",2001,"BIDACHE"]
["1,39,68","BLANDO","Marie",2000,"ST PALAIS"]

{"sheet":"Cadet GARC ","index":3,"n_rows":32,"n_cols":14,"rows_kept":32,"cut":false,"hidden":false,"merged":[[1,0,1,5],[3,0,3,5],[5,1,5,5]]}
[]
["CLASSEMENTGENERAL"]
[]
[{"$f":"Paramètres!B1","v":"CHALLENGE DU PAYS BASQUE  : ST jean Pied de Port le 19/07/2017"}]
[]
["EPREUVE :",{"$f":"Paramètres!C21","v":"100 NL Cadet  Garçons"},null,null,null,null,null,null,null,null,"Club","Points","Meilleur 2nd","Total"]
[null,null,null,null,null,null,null,null,null,null,{"$f":"Paramètres!C5","v":"BIDACHE"},1,null,{"$f":"SUM(L7:M7)","v":1}]
["Temps","Noms","Prenoms","Années de","Communes",null,null,null,null,null,{"$f":"Paramètres!C6","v":"HASPARREN"},3,null,{"$f":"SUM(L8:M8)","v":3}]
[null,null,null,"naissance",null,null,null,null,null,null,{"$f":"Paramètres!C7","v":"MAULEON"},5,1,6]
["m.ss.cc",null,null,null,null,null,null,null,null,null,{"$f":"Paramètres!C8","v":"GARAZI"},4,null,4]
["ne pas utiliser","ne pas utiliser","ne pas utiliser","ne pas utiliser","ne pas utiliser","ne pas utiliser",null,null,null,null,{"$f":"Paramètres!C9","v":"ST PALAIS"},2,null,2]
["1,03,28","COLAS","Martin",2001,"MAULEON",null,null,null,null,null,{"$f":"Paramètres!C10","v":"Equipe 6"},null,null,0]
["1,05,83","ELISSEIX","Johan",2000,"MAULEON",null,null,null,null,null,{"$f":"Paramètres!C11","v":"Equipe 7"},null,null,0]
["1,05,84","LARRALDE","Eiande",2001,"GARAZI",null,null,null,null,null,{"$f":"Paramètres!C12","v":"Equipe 8"},null,null,0]
["1,06,40","MOUESCA","Eneko",2002,"HASPARREN",null,null,null,null,null,{"$f":"Paramètres!C13","v":"Equipe 9"},null,null,0]
["1,06,48","ARDANS","Unaï",2000,"GARAZI",null,null,null,null,null,{"$f":"Paramètres!C14","v":"Equipe 10"},null,null,0]
["1,07,07","BARBIER","Damien",2001,"GARAZI"]
["1,07,22","MAURICE","Grégoire",2002,"ST PALAIS"]
["1,08,46","DUFAU","Thomas",2002,"BIDACHE"]
["1,10,93","HAZARCA SAPARRART","Imanol",2001,"GARAZI"]
["1,11,19","INDACOCHEA","Peio",2004,"MAULEON"]
["1,11,45","CONCHEZ","Baptiste",2004,"MAULEON"]
["1,13,21","MACHICOTE","Yohan",2001,"HASPARREN"]
["1,13,43","AROTCARENA","Julen",2002,"GARAZI"]
["1,14,14","PAGOLA ELIZONDO","Ellande",2000,"GARAZI"]
["1,14,86","ELISSEIX","Matias",2003,"MAULEON"]
["1,15,64","HIRIBURU","Mathieu",2003,"ST PALAIS"]
["1,16,07","DAINCIART","Iban",2002,"HASPARREN"]
["1,18,82","LACO","Gexan",2003,"MAULEON"]
["1,23,13","PHAGABURU","Unai",2003,"MAULEON"]
["1,35,01","WARNERY","Yann",2002,"GARAZI"]
["1,35,77","WARNERY","Stéphane",2002,"GARAZI"]

{"sheet":"Tetard FILL ","index":4,"n_rows":45,"n_cols":14,"rows_kept":45,"cut":false,"hidden":false,"merged":[[1,0,1,5],[3,0,3,5],[5,1,5,5]]}
[]
["CLASSEMENT  GENERAL"]
[]
[{"$f":"Paramètres!B1","v":"CHALLENGE DU PAYS BASQUE  : ST jean Pied de Port le 19/07/2017"}]
[]
["EPREUVE :    ",{"$f":"Paramètres!C22","v":"25 brasse Têtard Filles"},null,null,null,null,null,null,null,null,"Club","Points","Meilleur 2nd","Total"]
[null,null,null,null,null,null,null,null,null,null,{"$f":"Paramètres!C5","v":"BIDACHE"},3,null,{"$f":"SUM(L7:M7)","v":3}]
["Temps","Noms","Prenoms","Années de","Communes",null,null,null,null,null,{"$f":"Paramètres!C6","v":"HASPARREN"},5,null,{"$f":"SUM(L8:M8)","v":5}]
[null,null,null,"Naissance",null,null,null,null,null,null,{"$f":"Paramètres!C7","v":"MAULEON"},4,1,5]
["m.ss.cc",null,null,null,null,null,null,null,null,null,{"$f":"Paramètres!C8","v":"GARAZI"},2,null,2]
["ne pas utiliser","ne pas utiliser","ne pas utiliser","ne pas utiliser","ne pas utiliser","ne pas utiliser",null,null,null,null,{"$f":"Paramètres!C9","v":"ST PALAIS"},1,null,1]
["0,26,03","ETCHEBERRY","Elea",2008,"HASPARREN",null,null,null,null,null,{"$f":"Paramètres!C10","v":"Equipe 6"},null,null,0]
["0,26,36","HIDONDO","Maialen",2007,"MAULEON",null,null,null,null,null,{"$f":"Paramètres!C11","v":"Equipe 7"},null,null,0]
["0,26,45","CASTEL","Lola",2007,"MAULEON",null,null,null,null,null,{"$f":"Paramètres!C12","v":"Equipe 8"},null,null,0]
["0,26,47","DOLHEGUY","Alice",2007,"BIDACHE",null,null,null,null,null,{"$f":"Paramètres!C13","v":"Equipe 9"},null,null,0]
["0,26,76","ELKEGARAY","Anita",2007,"MAULEON",null,null,null,null,null,{"$f":"Paramètres!C14","v":"Equipe 10"},null,null,0]
["0,27,11","LARRAMENDY","Dina",2007,"HASPARREN"]
["0,27,17","INDA","Idoia",2007,"GARAZI"]
["0,27,27","HEITZ","Ana",2007,"GARAZI"]
["0,27,69","LAMARQUE","Milena",2007,"ST PALAIS"]
["0,28,14","ERRECART","Lola",2007,"HASPARREN"]
["0,28,60","MOUSTIRATS","Aurelie",2007,"HASPARREN"]
["0,28,88","AMAND","Leylou",2007,"BIDACHE"]
["0,28,89","BURGUBURU","Lucie",2008,"HASPARREN"]
["0,29,40","VERDUN","Alaitz",2009,"GARAZI"]
["0,29,84","KURUTCHARRY","Haize",2008,"GARAZI"]
["0,30,16","BASSAGAISTEGUY","Anita",2007,"HASPARREN"]
["0,31,43","BERGARA","Ania",2007,"HASPARREN"]
["0,31,86","KURUTCHARRY","Intza",2008,"GARAZI"]
["0,33,10","BEGUE-IRIBARNE","Fiona",2007,"GARAZI"]
["0,33,12","BARBIER","Elina",2009,"GARAZI"]
["0,33,12","BORDABEHERE","Ines",2007,"ST PALAIS"]
["0,33,26","GOUNET","Emma",2008,"HASPARREN"]
["0,33,63","UNTERREINER","Laina",2007,"GARAZI"]
["0,35,08","STEPHEN","Olivia",2008,"MAULEON"]
["0,35,81","IBARGARAY","Alice",2007,"GARAZI"]
["0,35,91","GUALTER-BENET","Janka",2008,"HASPARREN"]
["0,35,95","CHAMALBIDE","Anais",2008,"MAULEON"]
["0,36,01","MORVAN","Hegoa",2009,"HASPARREN"]
["0,37,68","LABAT","Helena",2007,"BIDACHE"]
["0,37,78","IRIGOYEN","Hegoa",2008,"HASPARREN"]
["0,39,14","CAPDEVILLE","Fany",2009,"HASPARREN"]
["0,40,43","BIDART CRUZ","Amalia",2008,"HASPARREN"]
["0,41,62","JAURENA","Xana",2010,"HASPARREN"]
["0,56,56","ESCUTARY","Dioni",2009,"HASPARREN"]

{"sheet":"Tetard GARC ","index":5,"n_rows":51,"n_cols":14,"rows_kept":51,"cut":false,"hidden":false,"merged":[[1,0,1,5],[3,0,3,5],[5,1,5,5]]}
[]
["CLASSEMENT  GENERAL"]
[]
[{"$f":"Paramètres!B1","v":"CHALLENGE DU PAYS BASQUE  : ST jean Pied de Port le 19/07/2017"}]
[]
["EPREUVE :    ",{"$f":"Paramètres!C23","v":"25 brasse Têtard Garçons"},null,null,null,null,null,null,null,null,"Club","Points","Meilleur 2nd","Total"]
[null,null,null,null,null,null,null,null,null,null,{"$f":"Paramètres!C5","v":"BIDACHE"},3,null,{"$f":"SUM(L7:M7)","v":3}]
["Temps","Noms","Prenoms","Années de","Communes",null,null,null,null,null,{"$f":"Paramètres!C6","v":"HASPARREN"},2,1,{"$f":"SUM(L8:M8)","v":3}]
[null,null,null,"Naissance",null,null,null,null,null,null,{"$f":"Paramètres!C7","v":"MAULEON"},4,null,4]
["m.ss.cc",null,null,null,null,null,null,null,null,null,{"$f":"Paramètres!C8","v":"GARAZI"},5,null,5]
["ne pas utiliser","ne pas utiliser","ne pas utiliser","ne pas utiliser","ne pas utiliser","ne pas utiliser",null,null,null,null,{"$f":"Paramètres!C9","v":"ST PALAIS"},1,null,1]
["0,24,33","HARRIET","Jon",2007,"GARAZI",null,null,null,null,null,{"$f":"Paramètres!C10","v":"Equipe 6"},null,null,0]
["0,24,66","CARRICART","Adrien",2007,"MAULEON",null,null,null,null,null,{"$f":"Paramètres!C11","v":"Equipe 7"},null,null,0]
["0,26,38","OSPITAL","Bastien",2009,"BIDACHE",null,null,null,null,null,{"$f":"Paramètres!C12","v":"Equipe 8"},null,null,0]
["0,26,49","PAGUEGUY","Unai",2008,"HASPARREN",null,null,null,null,null,{"$f":"Paramètres!C13","v":"Equipe 9"},null,null,0]
["0,26,80","ROPTON","Bixente",2008,"HASPARREN",null,null,null,null,null,{"$f":"Paramètres!C14","v":"Equipe 10"},null,null,0]
["0,27,15","PEDOUAN","Paul",2007,"HASPARREN"]
["0,27,49","LARRE","Xan-Eki",2008,"GARAZI"]
["0,27,61","DUFAU","Ellande",2008,"GARAZI"]
["0,27,76","POCHELU","Pako",2008,"GARAZI"]
["0,28,93","CASTEGE","Xabi",2007,"ST PALAIS"]
["0,29,65","LAPEGUE","Maxime",2008,"BIDACHE"]
["0,29,77","JACQUET ","Mathys",2007,"BIDACHE"]
["0,29,80","AUZQUI","Eneko",2007,"ST PALAIS"]
["0,29,95","UHART","Iban",2007,"GARAZI"]
["0,30,08","ESCUTARY","Julen",2007,"HASPARREN"]
["0,30,18","ENTERS","Anthony",2007,"MAULEON"]
["0,30,19","GARATEIX","Mattin",2007,"GARAZI"]
["0,30,35","MERLE","Ethan",2007,"ST PALAIS"]
["0,30,52","LARRORY","Antton",2008,"MAULEON"]
["0,30,83","SALLABERRY","Rémi",2008,"MAULEON"]
["0,30,87","AGUER","Arnaud",2008,"ST PALAIS"]
["0,31,27","ETCHEVERRY","Mikel",2007,"HASPARREN"]
["0,31,29","IRALOUR ETCHEVERRY","Kaiet",2009,"GARAZI"]
["0,31,72","IRIART IRIGOIN","Aguxtin",2008,"GARAZI"]
["0,31,74","MARTINON","Xalbat",2007,"HASPARREN"]
["0,32,21","BROS","Ximun",2008,"HASPARREN"]
["0,33,67","UHALDE","Imanol",2008,"ST PALAIS"]
["0,34,69","CURUTCHET-ETCHART","Luka",2008,"HASPARREN"]
["0,35,42","DETCHART","Eneko",2008,"ST PALAIS"]
["0,35,92","CORNAGLIA","Victor",2008,"ST PALAIS"]
["0,36,40","VERGER","Xan",2007,"GARAZI"]
["0,36,53","ORRU","Eneko",2009,"HASPARREN"]
["0,37,59","BAILE","Dorian",2008,"ST PALAIS"]
["0,37,63","ARGAIN-OYHAMBURU","Ekhi",2007,"GARAZI"]
["0,37,65","MARTINON","Estebe",2009,"HASPARREN"]
["0,37,79","OXOBY","Arño",2009,"HASPARREN"]
["0,39,64","LAULHE","Jules",2008,"ST PALAIS"]
["0,41,57","CHRISTIE","Charlie",2008,"MAULEON"]
["0,46,52","MASSOT","Gabin",2009,"ST PALAIS"]
["0,46,61","SAFFORES","Romain",2009,"HASPARREN"]

{"sheet":"Caneton FILL","index":6,"n_rows":60,"n_cols":14,"rows_kept":60,"cut":false,"hidden":false,"merged":[[1,0,1,5],[3,0,3,5],[5,1,5,5]]}
[]
["CLASSEMENTGENERAL"]
[]
[{"$f":"Paramètres!B1","v":"CHALLENGE DU PAYS BASQUE  : ST jean Pied de Port le 19/07/2017"}]
[]
["EPREUVE :",{"$f":"Paramètres!C24","v":"50 brasse  Canetons Filles"},null,null,null,null,null,null,null,null,"Club","Points","Meilleur 2nd","Total"]
[null,null,null,null,null,null,null,null,null,null,{"$f":"Paramètres!C5","v":"BIDACHE"},4,null,{"$f":"SUM(L7:M7)","v":4}]
["Temps","Noms","Prenoms","Années de","Communes",null,null,null,null,null,{"$f":"Paramètres!C6","v":"HASPARREN"},5,1,{"$f":"SUM(L8:M8)","v":6}]
[null,null,null,"Naissance",null,null,null,null,null,null,{"$f":"Paramètres!C7","v":"MAULEON"},2,null,2]
["m.ss.cc",null,null,null,null,null,null,null,null,null,{"$f":"Paramètres!C8","v":"GARAZI"},3,null,3]
["ne pas utiliser","ne pas utiliser","ne pas utiliser","ne pas utiliser","ne pas utiliser","ne pas utiliser",null,null,null,null,{"$f":"Paramètres!C9","v":"ST PALAIS"},1,null,1]
["0,45,49","ROPTON","Eve",2005,"HASPARREN",null,null,null,null,null,{"$f":"Paramètres!C10","v":"Equipe 6"},null,null,0]
["0,45,58","VIGNEAU","Lucie",2005,"BIDACHE",null,null,null,null,null,{"$f":"Paramètres!C11","v":"Equipe 7"},null,null,0]
["0,46,30","ETCHEBASTER","Lisa",2005,"HASPARREN",null,null,null,null,null,{"$f":"Paramètres!C12","v":"Equipe 8"},null,null,0]
["0,46,43","LARRE","Milia",2005,"GARAZI",null,null,null,null,null,{"$f":"Paramètres!C13","v":"Equipe 9"},null,null,0]
["0,48,62","ETCHEVERRY","Julie",2005,"HASPARREN",null,null,null,null,null,{"$f":"Paramètres!C14","v":"Equipe 10"},null,null,0]
["0,49,76","CAZANAVE","Oihana",2005,"MAULEON"]
["0,50,08","DUMERCQ","Celia",2006,"BIDACHE"]
["0,50,28","ALKHAT","Noémie",2005,"ST PALAIS"]
["0,50,38","AROTCARENA","Jone",2006,"GARAZI"]
["0,50,68","LIMOUZIN","Marilou",2005,"MAULEON"]
["0,50,92","GARACOTCHE","Carrie",2005,"HASPARREN"]
["0,50,95","CAPDEVILLE","Anna",2006,"HASPARREN"]
["0,51,63","RECALDE","Anais",2005,"ST PALAIS"]
["0,51,97","CLAVERIE","Naia",2005,"MAULEON"]
["0,52,43","IRUME","Thalia",2006,"ST PALAIS"]
["0,52,46","ERBIN","Heloïse",2005,"MAULEON"]
["0,52,71","IRATÇABAL","Marie",2006,"MAULEON"]
["0,53,15","HIRIBURU","Alaia",2006,"ST PALAIS"]
["0,53,31","MOUESCA","Aize",2006,"HASPARREN"]
["0,53,54","CARRICART","Jade",2005,"GARAZI"]
["0,53,56","LASSALLE","Hannah",2006,"ST PALAIS"]
["0,53,63","AUZQUI","Eztitxu",2005,"ST PALAIS"]
["0,53,98","EYHERABIDE","Maiana",2006,"GARAZI"]
["0,54,98","BASSAGAISTEGUY","Jenofa",2005,"HASPARREN"]
["0,55,18","DUFAU","Leire",2005,"GARAZI"]
["0,55,95","CAPA","Léticia",2005,"MAULEON"]
["0,55,99","APESTEGUY","Maia-Jeanne",2006,"ST PALAIS"]
["0,56,90","POCHELU","Ema",2006,"GARAZI"]
["0,57,10","CURRUTCHET","Elina",2006,"GARAZI"]
["0,57,19","POMMIES","Ambre",2005,"BIDACHE"]
["0,57,57","NOBLET-BIDART","Lorena",2006,"GARAZI"]
["0,58,68","AGUERRE LACO","Eulali",2006,"MAULEON"]
["0,59,08","EYHARTZ","Pauline",2006,"GARAZI"]
["0,59,77","KURUTCHARRY","Elaia",2006,"GARAZI"]
["0,59,98","ASTABIE","Margaux",2006,"ST PALAIS"]
["1,00,84","ERRECART","Martta",2005,"HASPARREN"]
["1,00,99","ETCHEGOIN","Naia",2006,"GARAZI"]
["1,01,12","MOUSTIRATS","Laura",2005,"HASPARREN"]
["1,01,44","BOISSINOT","Joana",2006,"MAULEON"]
["1,01,57","RECALDE","Naia",2006,"ST PALAIS"]
["1,01,85","MOUESCA","Argitxu",2005,"HASPARREN"]
["1,02,81","ETCHECHURY-MARIN","Oihana",2006,"GARAZI"]
["1,03,28","INCHAUSPE","Julie",2006,"GARAZI"]
["1,05,16","JAURIBERRY","Lili",2006,"GARAZI"]
["1,05,54","ETCHANDY","Xabina",2006,"GARAZI"]
["1,05,73","UHART","Laia",2006,"GARAZI"]
["1,07,96","LARRAMENDY","Rita",2005,"HASPARREN"]
["1,10,43","BROS","Lisa",2006,"HASPARREN"]
["1,11,86","ANGUELU","Clemence",2005,"BIDACHE"]

{"sheet":"caneton GARC ","index":7,"n_rows":48,"n_cols":14,"rows_kept":48,"cut":false,"hidden":false,"merged":[[1,0,1,5],[3,0,3,5],[5,1,5,5]]}
[]
["CLASSEMENTGENERAL"]
[]
[{"$f":"Paramètres!B1","v":"CHALLENGE DU PAYS BASQUE  : ST jean Pied de Port le 19/07/2017"}]
[]
["EPREUVE :",{"$f":"Paramètres!C25","v":"50 brasse Canetons Garçons"},null,null,null,null,null,null,null,null,"Club","Points","Meilleur 2nd","Total"]
[null,null,null,null,null,null,null,null,null,null,{"$f":"Paramètres!C5","v":"BIDACHE"},2,null,{"$f":"SUM(L7:M7)","v":2}]
["Temps","Noms","Prenoms","Années de","Communes",null,null,null,null,null,{"$f":"Paramètres!C6","v":"HASPARREN"},3,null,{"$f":"SUM(L8:M8)","v":3}]
[null,null,null,"Naissance",null,null,null,null,null,null,{"$f":"Paramètres!C7","v":"MAULEON"},1,null,1]
["m.ss.cc",null,null,null,null,null,null,null,null,null,{"$f":"Paramètres!C8","v":"GARAZI"},5,null,5]
["ne pas utiliser","ne pas utiliser","ne pas utiliser","ne pas utiliser","ne pas utiliser","ne pas utiliser",null,null,null,null,{"$f":"Paramètres!C9","v":"ST PALAIS"},4,1,5]
["0,41,19","GRANGE","Antton",2005,"GARAZI",null,null,null,null,null,{"$f":"Paramètres!C10","v":"Equipe 6"},null,null,0]
["0,47,13","BRISE","Bastien",2005,"ST PALAIS",null,null,null,null,null,{"$f":"Paramètres!C11","v":"Equipe 7"},null,null,0]
["0,48,19","GOYHEIX","Yohan",2005,"ST PALAIS",null,null,null,null,null,{"$f":"Paramètres!C12","v":"Equipe 8"},null,null,0]
["0,48,46","PAGUEGUY","Luken",2006,"HASPARREN",null,null,null,null,null,{"$f":"Paramètres!C13","v":"Equipe 9"},null,null,0]
["0,49,75","HERRIEST","Gilen",2005,"GARAZI",null,null,null,null,null,{"$f":"Paramètres!C14","v":"Equipe 10"},null,null,0]
["0,50,18","HEITZ","Jon",2005,"GARAZI"]
["0,50,45","HIRIBARNE","Jon",2005,"HASPARREN"]
["0,50,51","LAPEGUE","Remi",2006,"BIDACHE"]
["0,50,82","BIDART","Xan",2006,"GARAZI"]
["0,51,02","DAINCIART","Julen",2005,"HASPARREN"]
["0,51,86","LACO","Bixente",2006,"MAULEON"]
["0,52,07","ARGUINDEGUY","Antton",2005,"HASPARREN"]
["0,52,79","BIDEGUINBERRY","Iban",2006,"GARAZI"]
["0,53,77","MORVAN","Ellande",2006,"HASPARREN"]
["0,53,86","LACABARATZ","Jon",2005,"HASPARREN"]
["0,53,90","HARAMBOURE","Benoit",2005,"HASPARREN"]
["0,54,00","IRALOUR ETCHEVERRY","Unai",2006,"GARAZI"]
["0,54,44","ASCARAT","Mikel",2005,"HASPARREN"]
["0,55,20","CHANGALA","Betti",2005,"GARAZI"]
["0,55,33","HOURCADE","Fabien",2005,"ST PALAIS"]
["0,55,35","CASTILLON","Thomas",2006,"ST PALAIS"]
["0,56,78","ELLISSECHE","Louis",2006,"ST PALAIS"]
["0,57,59","MAYTE","Miguel",2005,"GARAZI"]
["0,58,88","BARBIER","Niko",2006,"GARAZI"]
["0,59,00","POISSONNIER","Virgile",2005,"HASPARREN"]
["0,59,02","MASSOT","Antonin",2006,"ST PALAIS"]
["0,59,07","ANDOUCHE","Ekaitz",2005,"MAULEON"]
["0,59,45","GOUNET","Hugo",2005,"HASPARREN"]
["1,00,22","IRIART-IRIGOIN","Kaiet",2006,"GARAZI"]
["1,01,03","LARRIEU","Joan",2006,"MAULEON"]
["1,01,21","BORDA","Peio",2006,"MAULEON"]
["1,01,43","LAHIRIGOYEN","Thomas",2005,"MAULEON"]
["1,02,07","SILVA","Mickael",2005,"MAULEON"]
["1,02,23","STEPHEN","Charlie",2006,"MAULEON"]
["1,05,10","BIDART","Inaki",2006,"HASPARREN"]
["1,05,87","AIT SALEH BISCAY","Mehdi",2006,"MAULEON"]
["1,06,42","ERGUY","Txomin",2006,"MAULEON"]

{"sheet":"MINIMFILL","index":8,"n_rows":38,"n_cols":14,"rows_kept":38,"cut":false,"hidden":false,"merged":[[1,0,1,5],[3,0,3,5],[5,1,5,5]]}
[]
["CLASSEMENT  GENERAL"]
[]
[{"$f":"Paramètres!B1","v":"CHALLENGE DU PAYS BASQUE  : ST jean Pied de Port le 19/07/2017"}]
[]
["EPREUVE :    ",{"$f":"Paramètres!C26","v":"100 NL Minimes   Filles"},null,null,null,null,null,null,null,null,"Club","Points","Meilleur 2nd","Total"]
[null,null,null,null,null,null,null,null,null,null,{"$f":"Paramètres!C5","v":"BIDACHE"},1,null,{"$f":"SUM(L7:M7)","v":1}]
["Temps","Noms","Prenoms","Années de","Communes",null,null,null,null,null,{"$f":"Paramètres!C6","v":"HASPARREN"},2,null,{"$f":"SUM(L8:M8)","v":2}]
[null,null,null,"Naissance",null,null,null,null,null,null,{"$f":"Paramètres!C7","v":"MAULEON"},5,null,5]
["m.ss.cc",null,null,null,null,null,null,null,null,null,{"$f":"Paramètres!C8","v":"GARAZI"},3,1,4]
["ne pas utiliser","ne pas utiliser","ne pas utiliser","ne pas utiliser","ne pas utiliser","ne pas utiliser",null,null,null,null,{"$f":"Paramètres!C9","v":"ST PALAIS"},4,null,4]
["1,08,56","ETCHETTO","Elise",2001,"MAULEON",null,null,null,null,null,{"$f":"Paramètres!C10","v":"Equipe 6"},null,null,0]
["1,08,75","MARQUINE","Camille",2001,"ST PALAIS",null,null,null,null,null,{"$f":"Paramètres!C11","v":"Equipe 7"},null,null,0]
["1,09,28","GONZALO-BILBO","Julene",2002,null,null,null,null,null,null,{"$f":"Paramètres!C12","v":"Equipe 8"},null,null,0]
["1,13,50","LAMOTHE","Litxu",2003,"GARAZI",null,null,null,null,null,{"$f":"Paramètres!C13","v":"Equipe 9"},null,null,0]
["1,13,95","ROBILLARD","Miren",2002,"GARAZI",null,null,null,null,null,{"$f":"Paramètres!C14","v":"Equipe 10"},null,null,0]
["1,14,18","INDACOCHÉA","Laura",2001,"MAULEON"]
["1,14,22","GASTELLOU","Lisa",2002,"GARAZI"]
["1,14,56","HOURCADE","Yina",2002,"MAULEON"]
["1,14,62","LASSALLE","Lucie",2002,"ST PALAIS"]
["1,17,90","HELOU","Lisa",2001,"HASPARREN"]
["1,19,65","VIVIANI","Lise",2001,"GARAZI"]
["1,20,80","ALKHAT","Candice",2001,"ST PALAIS"]
["1,21,45","CHAMALBIDE","Emma",2002,"ST PALAIS"]
["1,21,67","ORDUNA","Léa-Marie",2001,"MAULEON"]
["1,21,84","BORDENAVE","Maia",null,"ST PALAIS"]
["1,22,08","LAMARQUE","Lisa",2002,"ST PALAIS"]
["1,22,48","JAURENA","Nahia",2004,"HASPARREN"]
["1,24,69","IRIBARREN","Anna",null,"ST PALAIS"]
["1,25,52","VIGNAU","Chloé",2001,"ST PALAIS"]
["1,25,94","ALBANDOS","Loélia",2001,"GARAZI"]
["1,25,98","ARDANS","Leire",2002,"GARAZI"]
["1,28,81","DUFAU","Lise",2002,"BIDACHE"]
["1,30,74","OSPITAL","Oihana",2001,"HASPARREN"]
["1,33,41","CARRICART","Lyne",2002,"GARAZI"]
["1,33,71","SALLENAVE-LENDRE","Lea",2001,"BIDACHE"]
["1,36,10","BORDAGARRAY","Loreila",2003,"MAULEON"]
["1,43,68","BOULLON","Daniela",2003,"MAULEON"]

{"sheet":"MINIMGARC","index":9,"n_rows":29,"n_cols":14,"rows_kept":29,"cut":false,"hidden":false,"merged":[[1,0,1,5],[3,0,3,5],[5,1,5,5]]}
[]
["CLASSEMENTGENERAL"]
[]
[{"$f":"Paramètres!B1","v":"CHALLENGE DU PAYS BASQUE  : ST jean Pied de Port le 19/07/2017"}]
[]
["EPREUVE :",{"$f":"Paramètres!C27","v":"100 NL Minimes Garçons"},null,null,null,null,null,null,null,null,"Club","Points","Meilleur 2nd","Total"]
[null,null,null,null,null,null,null,null,null,null,{"$f":"Paramètres!C5","v":"BIDACHE"},1,null,{"$f":"SUM(L7:M7)","v":1}]
["Temps","Noms","Prenoms","Années de","Communes",null,null,null,null,null,{"$f":"Paramètres!C6","v":"HASPARREN"},4,null,{"$f":"SUM(L8:M8)","v":4}]
[null,null,null,"Naissance",null,null,null,null,null,null,{"$f":"Paramètres!C7","v":"MAULEON"},5,null,5]
["m.ss.cc",null,null,null,null,null,null,null,null,null,{"$f":"Paramètres!C8","v":"GARAZI"},3,1,4]
["ne pas utiliser","ne pas utiliser","ne pas utiliser","ne pas utiliser","ne pas utiliser","ne pas utiliser",null,null,null,null,{"$f":"Paramètres!C9","v":"ST PALAIS"},2,null,2]
["1,02,93","COLAS","Martin",2001,"MAULEON",null,null,null,null,null,{"$f":"Paramètres!C10","v":"Equipe 6"},null,null,0]
["1,06,55","MOUESCA","Eneko",2002,"HASPARREN",null,null,null,null,null,{"$f":"Paramètres!C11","v":"Equipe 7"},null,null,0]
["1,07,15","LARRALDE","Eiande",2001,"GARAZI",null,null,null,null,null,{"$f":"Paramètres!C12","v":"Equipe 8"},null,null,0]
["1,07,39","MAURICE","Grégoire",2002,"ST PALAIS",null,null,null,null,null,{"$f":"Paramètres!C13","v":"Equipe 9"},null,null,0]
["1,08,28","BARBIER","Damien",2001,"GARAZI",null,null,null,null,null,{"$f":"Paramètres!C14","v":"Equipe 10"},null,null,0]
["1,11,22","DUFAU","Thomas",2002,"BIDACHE"]
["1,12,26","ENTERS","Dorian",2003,"MAULEON"]
["1,12,43","HAZARCA-SAPARRART","Imanol",2001,"GARAZI"]
["1,13,03","MACHICOTE","Yohan",2001,"HASPARREN"]
["1,13,47","AROTCARENA-ROSAS","Julen",2002,"GARAZI"]
["1,16,40","DAINCIART","Iban",2002,"HASPARREN"]
["1,18,87","GOYHEIX","Yohan",2005,"ST PALAIS"]
["1,18,89","ETCHEGARAY","Arno",2002,"St Palais"]
["1,23,88","ELISSECHE","Leo",2003,"ST PALAIS"]
["1,27,69","BELLOCQ","Eric",2001,"HASPARREN"]
["1,35,45","WARNERY","Yann",2002,"GARAZI"]
["1,35,98","WARNERY","Stéphane",2002,"GARAZI"]
["1,41,37","EBERHARD","Bastien",2001,"HASPARREN"]

{"sheet":"benjamin  FILL","index":10,"n_rows":44,"n_cols":14,"rows_kept":44,"cut":false,"hidden":false,"merged":[[1,0,1,5],[3,0,3,5],[5,1,5,5]]}
[]
["CLASSEMENT  GENERAL"]
[]
[{"$f":"Paramètres!B1","v":"CHALLENGE DU PAYS BASQUE  : ST jean Pied de Port le 19/07/2017"}]
[]
["EPREUVE :    ",{"$f":"Paramètres!C30","v":"50 brasse  Benjamin Filles"},null,null,null,null,null,null,null,null,"Club","Points","Meilleur 2nd","Total"]
[null,null,null,null,null,null,null,null,null,null,{"$f":"Paramètres!C5","v":"BIDACHE"},1,null,{"$f":"SUM(L7:M7)","v":1}]
["Temps","Noms","Prenoms","Années de","Communes",null,null,null,null,null,{"$f":"Paramètres!C6","v":"HASPARREN"},5,null,{"$f":"SUM(L8:M8)","v":5}]
[null,null,null,"Naissance",null,null,null,null,null,null,{"$f":"Paramètres!C7","v":"MAULEON"},3,null,3]
["m.ss.cc",null,null,null,null,null,null,null,null,null,{"$f":"Paramètres!C8","v":"GARAZI"},4,1,5]
["ne pas utiliser","ne pas utiliser","ne pas utiliser","ne pas utiliser","ne pas utiliser","ne pas utiliser",null,null,null,null,{"$f":"Paramètres!C9","v":"ST PALAIS"},2,null,2]
["0,42,53","LEGLISE","Anais",2003,"HASPARREN",null,null,null,null,null,{"$f":"Paramètres!C10","v":"Equipe 6"},null,null,0]
["0,43,70","LAMOTHE","Litxu",2003,"GARAZI",null,null,null,null,null,{"$f":"Paramètres!C11","v":"Equipe 7"},null,null,0]
["0,44,08","POCHELU","Naia",2004,"GARAZI",null,null,null,null,null,{"$f":"Paramètres!C12","v":"Equipe 8"},null,null,0]
["0,44,49","HIRIART URRUTY","Chloé",2004,"HASPARREN",null,null,null,null,null,{"$f":"Paramètres!C13","v":"Equipe 9"},null,null,0]
["0,45,45","BORDA","Anais",2004,"MAULEON",null,null,null,null,null,{"$f":"Paramètres!C14","v":"Equipe 10"},null,null,0]
["0,45,90","ICEAGA","Idoia",2003,"ST PALAIS"]
["0,46,02","VIGNAU","Emma",2004,"ST PALAIS"]
["0,46,18","CARRICART","Manon",2004,"MAULEON"]
["0,46,24","IRALOUR","Miren",2004,"GARAZI"]
["0,46,55","ETCHEVERRY","Anna",2003,"HASPARREN"]
["0,47,05","FORDIN","Lea",2004,"BIDACHE"]
["0,47,26","JAURENA","Nahia",2004,"HASPARREN"]
["0,48,62","BORDENAVE","Maia",2003,"ST PALAIS"]
["0,48,77","KURUTCHARRY","Milena",2003,"GARAZI"]
["0,49,00","TARRIDE","Gabrielle",2004,"ST PALAIS"]
["0,49,02","DUMERCQ","Wendy",2004,"BIDACHE"]
["0,49,11","FOURCADE","Xole",2004,"ST PALAIS"]
["0,49,25","DOLHEGUY","Lucie",2003,"BIDACHE"]
["0,50,43","GOYHEIX","Clara",2004,"ST PALAIS"]
["0,50,65","CAPDEVILLE","Manon",2003,"HASPARREN"]
["0,50,98","MAITIA","Elena",2004,"HASPARREN"]
["0,51,07","VIGNEAU","Nina",2003,"BIDACHE"]
["0,51,29","SAHORES","Kleina",2004,"GARAZI"]
["0,51,99","BRISE","Lola",2003,"ST PALAIS"]
["0,52,15","BOUILLON","Maria",2004,"MAULEON"]
["0,52,44","HARAMBOURE","Carole",2004,"HASPARREN"]
["0,53,56","BOUSQUET","Maitena",2003,"HASPARREN"]
["0,55,01","RAGAGNON","Paola",2003,"BIDACHE"]
["0,55,69","IBARGARAY","Amelia",2004,"GARAZI"]
["0,55,87","RECALT","Emma",2004,"MAULEON"]
["0,56,33","CAILLEBA","Stella",2004,"BIDACHE"]
["0,59,35","JAURIBERRY","Melinda",2004,"GARAZI"]
["1,08,22","CHORY","Alexandra",2004,"BIDACHE"]

{"sheet":"benjamin GARC ","index":11,"n_rows":34,"n_cols":14,"rows_kept":34,"cut":false,"hidden":false,"merged":[[1,0,1,5],[3,0,3,5],[5,1,5,5]]}
[]
["CLASSEMENT  GENERAL"]
[]
[{"$f":"Paramètres!B1","v":"CHALLENGE DU PAYS BASQUE  : ST jean Pied de Port le 19/07/2017"}]
[]
["EPREUVE :    ",{"$f":"Paramètres!C31","v":"50 brasse Benjamin Garçons"},null,null,null,null,null,null,null,null,"Club","Points","Meilleur 2nd","Total"]
[null,null,null,null,null,null,null,null,null,null,{"$f":"Paramètres!C5","v":"BIDACHE"},1,null,{"$f":"SUM(L7:M7)","v":1}]
["Temps","Noms","Prenoms","Années de","Communes",null,null,null,null,null,{"$f":"Paramètres!C6","v":"HASPARREN"},3,null,{"$f":"SUM(L8:M8)","v":3}]
[null,null,null,"Naissance",null,null,null,null,null,null,{"$f":"Paramètres!C7","v":"MAULEON"},4,1,5]
["m.ss.cc",null,null,null,null,null,null,null,null,null,{"$f":"Paramètres!C8","v":"GARAZI"},2,null,2]
["ne pas utiliser","ne pas utiliser","ne pas utiliser","ne pas utiliser","ne pas utiliser","ne pas utiliser",null,null,null,null,{"$f":"Paramètres!C9","v":"ST PALAIS"},5,null,{"$f":"SUM(L11:M11)","v":5}]
["0,38,05","HIRIBURU","Mathieu",2003,"ST PALAIS",null,null,null,null,null,{"$f":"Paramètres!C10","v":"Equipe 6"},null,null,0]
["0,40,50","CONCHEZ","Baptiste",2004,null,null,null,null,null,null,{"$f":"Paramètres!C11","v":"Equipe 7"},null,null,0]
["0,40,99","ENTERS","Dorian",2003,"MAULEON",null,null,null,null,null,{"$f":"Paramètres!C12","v":"Equipe 8"},null,null,0]
["0,41,35","HIRIBARNE","Peio",2003,"HASPARREN",null,null,null,null,null,{"$f":"Paramètres!C13","v":"Equipe 9"},null,null,0]
["0,41,90","INDACOCHÉA","Peio",2004,"MAULEON",null,null,null,null,null,{"$f":"Paramètres!C14","v":"Equipe 10"},null,null,0]
["0,43,02","BARBIER","Yon",2003,"GARAZI"]
["0,43,81","LACO","Gexan",2003,"MAULEON"]
["0,44,49","AZCOITIA","Paul",2003,"GARAZI"]
["0,45,49","LARRE","Ellande",2004,"HASPARREN"]
["0,46,29","CORNAGLIA","Martin",2003,"ST PALAIS"]
["0,46,38","AMAND","Enzo",2003,"BIDACHE"]
["0,46,48","ELLISSECHE","Leo",2003,"ST PALAIS"]
["0,46,53","ELISSEIX","Matias",2003,"MAULEON"]
["0,47,11","ICEAGA","Iban",2004,"ST PALAIS"]
["0,47,16","UNTERREINER","Mattin",2004,"GARAZI"]
["0,48,25","JIMENEZ","Romain",2003,"HASPARREN"]
["0,48,40","OSPITAL","Quentin",2004,"BIDACHE"]
["0,49,62","BIDART","Paolo",2004,"GARAZI"]
["0,50,19","ETCHEBEST","Matis",2004,"ST PALAIS"]
["0,50,79","ETCHELECU","Oihan",2004,"HASPARREN"]
["0,50,93","PHAGABURU","Unaï",2003,"MAULEON"]
["0,53,04","AGUER","Benoit",2004,"ST PALAIS"]
["0,59,46","LAULHE","Axel",2004,"ST PALAIS"]

{"sheet":"Relais","index":12,"n_rows":44,"n_cols":12,"rows_kept":44,"cut":false,"hidden":false,"merged":[[29,0,29,1],[29,3,29,4],[43,3,43,4],[43,0,43,1],[16,3,16,4],[37,3,37,4],[42,0,42,1],[42,3,42,4],[40,0,40,1],[40,3,40,4],[41,0,41,1],[41,3,41,4],[22,3,22,4],[26,3,26,4],[27,0,27,1],[27,3,27,4],[28,0,28,1],[28,3,28,4],[25,0,25,1],[25,3,25,4],[26,0,26,1],[38,0,38,1],[38,3,38,4],[39,0,39,1],[39,3,39,4],[34,1,34,5],[36,0,36,1],[36,3,36,4],[37,0,37,1],[0,0,0,5],[2,0,2,5],[6,1,6,5],[8,0,8,1],[8,3,8,4],[9,0,9,1],[9,3,9,4],[11,0,11,1],[11,3,11,4],[14,0,14,1],[14,3,14,4],[12,0,12,1],[12,3,12,4],[13,0,13,1],[13,3,13,4],[10,0,10,1],[10,3,10,4],[24,0,24,1],[24,3,24,4],[23,0,23,1],[23,3,23,4],[15,0,15,1],[22,0,22,1],[15,3,15,4],[16,0,16,1],[20,1,20,5]]}
["CHALLENGE DU PAYS BASQUE :"]
[]
[{"$f":"Paramètres!B1","v":"CHALLENGE DU PAYS BASQUE  : ST jean Pied de Port le 19/07/2017"}]
[]
["A SAISIR : PAS DE CALCUL AUTOMATIQUE",null,null,null,null,null,null,null,null,null,"A SAISIR : PAS DE CALCUL AUTOMATIQUE"]
[null,null,null,null,null,null,null,null,null,null,"A saisir pour remonter des points dans le fichier RECAP"]
["EPREUVE :    ",{"$f":"Paramètres!C28","v":"Relais 10*25 brasse Tétard/Canetons"}]
[]
["CLASSEMENT",null,"TEMPS","CLUB",null,"POINTS",null,null,null,null,"Club","Points"]
[1,null,"04,01,23","GARAZI",null,5,null,null,null,null,{"$f":"Paramètres!C5","v":"BIDACHE"},1]
[2,null,"04,06,15","HASPARREN",null,4,null,null,null,null,{"$f":"Paramètres!C6","v":"HASPARREN"},4]
[3,null,"04,19,00","MAULEON",null,3,null,null,null,null,{"$f":"Paramètres!C7","v":"MAULEON"},3]
[4,null,"04,29,09","ST PALAIS",null,2,null,null,null,null,{"$f":"Paramètres!C8","v":"GARAZI"},5]
[5,null,"04,33,52","BIDACHE",null,1,null,null,null,null,{"$f":"Paramètres!C9","v":"ST PALAIS"},2]
[6,null,null,null,null,null,null,null,null,null,{"$f":"Paramètres!C10","v":"Equipe 6"}]
[7]
[8]
[]
[]
[]
["EPREUVE :    ",{"$f":"Paramètres!C29","v":"Relais 10 x 50 brasse Benj/Minimes/Cadet"}]
[]
["CLASSEMENT",null,"TEMPS","CLUB",null,"POINTS",null,null,null,null,"Club","Points"]
[1,null,"06,58,30","ST PALAIS",null,5,null,null,null,null,{"$f":"Paramètres!C5","v":"BIDACHE"},1]
[2,null,"07,00,35","GARAZI",null,4,null,null,null,null,{"$f":"Paramètres!C6","v":"HASPARREN"},2]
[3,null,"07,00,99","MAULEON",null,3,null,null,null,null,{"$f":"Paramètres!C7","v":"MAULEON"},3]
[4,null,"07,04,80","HASPARREN",null,2,null,null,null,null,{"$f":"Paramètres!C8","v":"GARAZI"},4]
[5,null,"07,49,48","BIDACHE",null,1,null,null,null,null,{"$f":"Paramètres!C9","v":"ST PALAIS"},5]
[6,null,null,null,null,null,null,null,null,null,{"$f":"Paramètres!C10","v":"Equipe 6"}]
[7]
[]
[]
[]
[]
["EPREUVE :    ",{"$f":"Paramètres!C32","v":"Relais 12 * 50 - Nage Libre "}]
[]
["CLASSEMENT",null,"TEMPS","CLUB",null,"POINTS",null,null,null,null,"Club","Points"]
[0,null,"06,59,19","HASPARREN",null,5,null,null,null,null,{"$f":"Paramètres!C5","v":"BIDACHE"},1]
[2,null,"07,00,87","MAULEON",null,4,null,null,null,null,{"$f":"Paramètres!C6","v":"HASPARREN"},5]
[3,null,"07,08,83","ST PALAIS",null,3,null,null,null,null,{"$f":"Paramètres!C7","v":"MAULEON"},4]
[4,null,"07,25,51","GARAZI",null,2,null,null,null,null,{"$f":"Paramètres!C8","v":"GARAZI"},2]
[5,null,"08,03,71","BIDACHE",null,1,null,null,null,null,{"$f":"Paramètres!C9","v":"ST PALAIS"},3]
[6,null,null,null,null,null,null,null,null,null,{"$f":"Paramètres!C10","v":"Equipe 6"}]
[7]